fUST/lending_fUST_20251229
["ID","MTS","AMOUNT","RATE_DAILY","PERIOD"]
[399990041,1766983839194,-1000.0,0.00018588,2]
[399990042,1766983839204,-2435.07991381,0.0001889,2]
[399990043,1766983839214,-1217.70382466,0.00018935,3]
[399990044,1766983839224,-2435.07991387,0.00019054,2]
[399990045,1766983839233,-5000.0,0.00019178,2]
[399990046,1766983839244,-151.0,0.000192,2]
[399990047,1766983839254,-151.0,0.000192,2]
[399990048,1766983839264,-151.0,0.000192,2]
[399990049,1766983839274,-151.0,0.000192,2]
[399990050,1766983839283,-151.0,0.000192,2]
[399990051,1766983839293,-151.0,0.000192,2]
[399990052,1766983839305,-5258.22484798,0.00019203,2]
[399990053,1766983839315,-161.1,0.00019225,3]
[399990054,1766983839325,-483.3,0.00019225,3]
[399990055,1766983839336,-167.55,0.000193,2]
[399990056,1766983839346,-170.45,0.000193,2]
[399990057,1766983839355,-11357.86,0.000193,2]
[399990058,1766983839365,-1686.81,0.000193,2]
[399990059,1766983839374,-231.0,0.00019541,2]
[399990060,1766983839383,-177.0,0.00019743,2]
[399990061,1766983839393,-165.0050275,0.000199,2]
[399990062,1766983839402,-7131.62100019,0.0002,2]
[399990063,1766983839411,-151.59432815,0.0002,2]
[399990064,1766983839420,-2000.0,0.0002,7]
[399990065,1766983839430,-507.16661,0.00020187,2]
[399990066,1766983839439,-593.15794902,0.00020354,2]
[399990067,1766983839448,-1000.0,0.00020447,2]
[399990068,1766983839458,-244.0,0.00020447,2]
[399990069,1766983839467,-2400.0,0.00020483,2]
[399990070,1766983839475,-322.2,0.00020595,3]
[399990071,1766983839487,-189.61,0.00020603,2]
[399990072,1766983839496,-160.0,0.0002074,3]
[399990073,1766983839505,-1686.81,0.00021,2]
[399990074,1766983839515,-461.67526834,0.00021013,2]
[399990075,1766983839525,-1364.0,0.00021197,2]
[399990076,1766983839536,-627.0,0.00021197,2]
[399990077,1766983839545,-2156.0,0.00021197,2]
[399990078,1766983839555,-11357.86,0.000212,2]
[399990079,1766983839566,-151.0,0.000212,2]
[399990080,1766983839575,-151.0,0.000212,2]
[399990081,1766983839585,-151.0,0.000212,2]
[399990082,1766983839594,-151.0,0.000212,2]
[399990083,1766983839604,-234.643774,0.000212,2]
[399990084,1766983839613,-151.0,0.000212,2]
[399990085,1766983839622,-154.577776,0.000212,2]
[399990086,1766983839631,-151.0,0.000212,2]
[399990087,1766983839640,-151.0,0.000212,2]
[399990088,1766983839649,-151.0,0.000212,2]
[399990089,1766983839658,-151.0,0.000212,2]
[399990090,1766983839668,-252.121849,0.000212,2]
[399990091,1766983839678,-158.360424,0.000212,2]
[399990092,1766983839688,-151.0,0.000212,2]
[399990093,1766983839698,-151.0,0.000212,2]
[399990094,1766983839708,-151.0,0.000212,2]
[399990095,1766983839717,-151.0,0.000212,2]
[399990096,1766983839727,-195.765928,0.000212,2]
[399990097,1766983839737,-151.0,0.000212,2]
[399990098,1766983839748,-151.0,0.000212,2]
[399990099,1766983839759,-151.0,0.000212,2]
[399990100,1766983839770,-151.0,0.000212,2]
[399990101,1766983839781,-1153.854595,0.000212,2]
[399990102,1766983839790,-174.992969,0.000212,2]
[399990103,1766983839800,-1153.854595,0.000212,2]
[399990104,1766983839809,-1153.854595,0.000212,2]
[399990105,1766983839818,-1153.854595,0.000212,2]
[399990106,1766983839827,-151.0,0.000212,2]
[399990107,1766983839837,-151.0,0.000212,2]
[399990108,1766983839845,-151.0,0.000212,2]
[399990109,1766983839854,-151.0,0.000212,2]
[399990110,1766983839864,-255.87368,0.000212,2]
[399990111,1766983839875,-350.798441,0.000212,2]
[399990112,1766983839885,-350.798441,0.000212,2]
[399990113,1766983839895,-151.0,0.000212,2]
[399990114,1766983839904,-350.798441,0.000212,2]
[399990115,1766983839916,-350.798441,0.000212,2]
[399990116,1766983839930,-151.0,0.000212,2]
[399990117,1766983839941,-151.0,0.000212,2]
[399990118,1766983839953,-151.0,0.000212,2]
[399990119,1766983839963,-262.81521,0.000212,2]
[399990120,1766983839976,-262.81521,0.000212,2]
[399990121,1766983839989,-151.0,0.000212,2]
[399990122,1766983840000,-262.81521,0.000212,2]
[399990123,1766983840010,-151.0,0.000212,2]
[399990124,1766983840022,-151.0,0.000212,2]
[399990125,1766983840034,-262.81521,0.000212,2]
[399990126,1766983840043,-151.0,0.000212,2]
[399990128,1766983840054,-151.0,0.000212,2]
[399990129,1766983840064,-284.78968,0.000212,2]
[399990130,1766983840074,-284.78968,0.000212,2]
[399990131,1766983840083,-284.78968,0.000212,2]
[399990132,1766983840093,-284.78968,0.000212,2]
[399990133,1766983840103,-151.0,0.000212,2]
[399990134,1766983840113,-804.01902,0.000212,2]
[399990135,1766983840122,-804.01902,0.000212,2]
[399990136,1766983840131,-704.489096,0.000212,2]
[399990137,1766983840150,-704.489096,0.000212,2]
[399990138,1766983840161,-804.01902,0.000212,2]
[399990139,1766983840171,-704.489096,0.000212,2]
[399990140,1766983840180,-804.01902,0.000212,2]
[399990141,1766983840190,-704.489096,0.000212,2]
[399990142,1766983840200,-239.037977,0.000212,2]
[399990143,1766983840210,-239.037977,0.000212,2]
[399990144,1766983840220,-239.037977,0.000212,2]
[399990145,1766983840231,-239.037977,0.000212,2]
[399990146,1766983840241,-151.0,0.000212,2]
[399990147,1766983840251,-163.739251,0.000212,2]
[399990148,1766983840260,-151.0,0.000212,2]
[399990149,1766983840272,-151.0,0.000212,2]
[399990150,1766983840282,-151.0,0.000212,2]
[399990151,1766983840293,-151.000016,0.000212,2]
[399990152,1766983840303,-155.874962,0.000212,2]
[399990153,1766983840313,-151.0,0.000212,2]
[399990154,1766983840323,-151.0,0.000212,2]
[399990155,1766983840334,-151.0,0.000212,2]
[399990156,1766983840344,-151.0,0.000212,2]
[399990157,1766983840354,-151.0,0.000212,2]
[399990158,1766983840364,-151.0,0.000212,2]
[399990159,1766983840374,-151.0,0.000212,2]
[399990160,1766983840383,-201.389752,0.000212,2]
[399990161,1766983840393,-217.289785,0.000212,2]
[399990162,1766983840403,-151.0,0.000212,2]
[399990163,1766983840412,-201.389752,0.000212,2]
[399990164,1766983840422,-217.289785,0.000212,2]
[399990165,1766983840432,-154.755059,0.000212,2]
[399990166,1766983840441,-201.389752,0.000212,2]
[399990167,1766983840451,-217.289785,0.000212,2]
[399990168,1766983840460,-217.289785,0.000212,2]
[399990169,1766983840470,-201.389752,0.000212,2]
[399990170,1766983840483,-151.0,0.000212,2]
[399990171,1766983840493,-151.0,0.000212,2]
[399990172,1766983840502,-151.0,0.000212,2]
[399990173,1766983840513,-168.542447,0.000212,2]
[399990174,1766983840523,-151.0,0.000212,2]
[399990175,1766983840533,-173.08705,0.000212,2]
[399990176,1766983840543,-436.24496,0.000212,2]
[399990177,1766983840552,-436.24496,0.000212,2]
[399990178,1766983840562,-436.24496,0.000212,2]
[399990179,1766983840572,-436.24496,0.000212,2]
[399990180,1766983840582,-151.0,0.000212,2]
[399990181,1766983840592,-745.594472,0.000212,2]
[399990182,1766983840602,-745.594472,0.000212,2]
[399990183,1766983840612,-745.594472,0.000212,2]
[399990184,1766983840621,-151.660409,0.000212,2]
[399990186,1766983840632,-745.594472,0.000212,2]
[399990187,1766983840641,-1419.944977,0.000212,2]
[399990189,1766983840650,-1419.944977,0.000212,2]
[399990191,1766983840660,-1419.944977,0.000212,2]
[399990192,1766983840669,-1419.944977,0.000212,2]
[399990193,1766983840678,-151.0,0.000212,2]
[399990194,1766983840687,-151.0,0.000212,2]
[399990195,1766983840698,-151.0,0.000212,2]
[399990196,1766983840707,-165.340979,0.000212,2]
[399990197,1766983840716,-151.0,0.000212,2]
[399990198,1766983840725,-151.0,0.000212,2]
[399990199,1766983840735,-151.0,0.000212,2]
[399990200,1766983840745,-151.0,0.000212,2]
[399990202,1766983840754,-178.524665,0.000212,2]
[399990204,1766983840764,-151.0,0.000212,2]
[399990206,1766983840773,-151.0,0.000212,2]
[399990208,1766983840782,-293.977543,0.000212,2]
[399990210,1766983840792,-151.0,0.000212,2]
[399990212,1766983840802,-151.0,0.000212,2]
[399990214,1766983840811,-151.0,0.000212,2]
[399990216,1766983840824,-151.0,0.000212,2]
[399990218,1766983840833,-151.0,0.000212,2]
[399990220,1766983840842,-151.0,0.000212,2]
[399990222,1766983840852,-151.0,0.000212,2]
[399990224,1766983840861,-151.0,0.000212,2]
[399990227,1766983840871,-151.0,0.000212,2]
[399990229,1766983840879,-151.0,0.000212,2]
[399990231,1766983840889,-388.08248,0.000212,2]
[399990233,1766983840900,-388.08248,0.000212,2]
[399990235,1766983840910,-151.0,0.000212,2]
[399990237,1766983840919,-388.08248,0.000212,2]
[399990239,1766983840933,-1537.041628,0.000212,2]
[399990241,1766983840942,-1537.041628,0.000212,2]
[399990243,1766983840952,-529.353773,0.000212,2]
[399990245,1766983840963,-388.08248,0.000212,2]
[399990247,1766983840972,-1041.66666667,0.00021202,2]
[399990250,1766983840982,-160.0,0.00021219,2]
[399990252,1766983840991,-2000.0,0.00021333,7]
[399990254,1766983841003,-151.0,0.00021475,2]
[399990256,1766983841012,-151.0,0.00021475,2]
[399990258,1766983841022,-168.0,0.00021537,2]
[399990260,1766983841031,-258.0,0.00021541,2]
[399990262,1766983841041,-168.0,0.00021545,2]
[399990264,1766983841050,-168.0,0.0002156,2]
[399990266,1766983841059,-478.75725327,0.00021561,2]
[399990268,1766983841068,-168.0,0.00021568,2]
[399990270,1766983841077,-168.0,0.00021569,2]
[399990272,1766983841087,-281.34389013,0.0002166,2]
[399990274,1766983841097,-274.4617958,0.00021767,2]
[399990276,1766983841107,-166.0,0.00022,2]
[399990278,1766983841116,-180.01440115,0.00022092,2]
[399990280,1766983841124,-496.47127164,0.00022109,2]
[399990282,1766983841134,-191.82476049,0.00022164,30]
[399990284,1766983841143,-179.55790287,0.00022174,5]
[399990286,1766983841152,-168.0,0.00022202,2]
[399990288,1766983841166,-751.5551774,0.00022217,2]
[399990290,1766983841175,-820.2337665,0.00022217,2]
[399990292,1766983841185,-376.1809797,0.00022217,2]
[399990294,1766983841194,-376.1809797,0.00022217,2]
[399990296,1766983841205,-379.5301689,0.00022217,2]
[399990298,1766983841214,-376.1809797,0.00022217,2]
[399990300,1766983841223,-376.1809797,0.00022217,2]
[399990303,1766983841232,-376.1809797,0.00022217,2]
[399990305,1766983841242,-376.1809797,0.00022217,2]
[399990307,1766983841251,-1153.854595,0.00022217,2]
[399990309,1766983841261,-1153.854595,0.00022217,2]
[399990311,1766983841270,-1153.854595,0.00022217,2]
[399990313,1766983841279,-1153.854595,0.00022217,2]
[399990314,1766983841288,-151.0,0.00022217,2]
[399990317,1766983841298,-151.0,0.00022217,2]
[399990319,1766983841308,-151.0,0.00022217,2]
[399990321,1766983841317,-151.0,0.00022217,2]
[399990323,1766983841327,-350.798441,0.00022217,2]
[399990325,1766983841339,-350.798441,0.00022217,2]
[399990327,1766983841348,-350.798441,0.00022217,2]
[399990329,1766983841358,-350.798441,0.00022217,2]
[399990331,1766983841367,-151.0,0.00022217,2]
[399990333,1766983841377,-151.0,0.00022217,2]
[399990335,1766983841387,-262.81521,0.00022217,2]
[399990337,1766983841396,-262.81521,0.00022217,2]
[399990339,1766983841406,-151.0,0.00022217,2]
[399990341,1766983841415,-262.81521,0.00022217,2]
[399990343,1766983841425,-151.0,0.00022217,2]
[399990345,1766983841435,-151.0,0.00022217,2]
[399990347,1766983841444,-262.81521,0.00022217,2]
[399990349,1766983841453,-151.0,0.00022217,2]
[399990351,1766983841463,-151.0,0.00022217,2]
[399990353,1766983841473,-284.78968,0.00022217,2]
[399990355,1766983841482,-284.78968,0.00022217,2]
[399990357,1766983841492,-284.78968,0.00022217,2]
[399990359,1766983841501,-284.78968,0.00022217,2]
[399990361,1766983841511,-151.0,0.00022217,2]
[399990363,1766983841520,-804.01902,0.00022217,2]
[399990365,1766983841528,-804.01902,0.00022217,2]
[399990367,1766983841538,-704.489096,0.00022217,2]
[399990369,1766983841547,-704.489096,0.00022217,2]
[399990371,1766983841556,-804.01902,0.00022217,2]
[399990373,1766983841565,-704.489096,0.00022217,2]
[399990375,1766983841574,-804.01902,0.00022217,2]
[399990377,1766983841583,-704.489096,0.00022217,2]
[399990379,1766983841592,-239.037977,0.00022217,2]
[399990381,1766983841601,-239.037977,0.00022217,2]
[399990383,1766983841613,-239.037977,0.00022217,2]
[399990385,1766983841622,-239.037977,0.00022217,2]
[399990387,1766983841631,-151.0,0.00022217,2]
[399990389,1766983841640,-298.519918,0.00022217,2]
[399990391,1766983841649,-151.0,0.00022217,2]
[399990393,1766983841658,-151.0,0.00022217,2]
[399990395,1766983841668,-151.0,0.00022217,2]
[399990397,1766983841677,-151.0,0.00022217,2]
[399990399,1766983841686,-182.368603,0.00022217,2]
[399990401,1766983841695,-218.06581,0.00022217,2]
[399990403,1766983841704,-151.0,0.00022217,2]
[399990405,1766983841714,-151.0,0.00022217,2]
[399990407,1766983841723,-151.0,0.00022217,2]
[399990409,1766983841732,-201.389752,0.00022217,2]
[399990411,1766983841741,-217.289785,0.00022217,2]
[399990413,1766983841750,-151.0,0.00022217,2]
[399990415,1766983841759,-201.389752,0.00022217,2]
[399990418,1766983841770,-217.289785,0.00022217,2]
[399990419,1766983841780,-201.389752,0.00022217,2]
[399990422,1766983841791,-217.289785,0.00022217,2]
[399990424,1766983841801,-217.289785,0.00022217,2]
[399990425,1766983841810,-201.389752,0.00022217,2]
[399990428,1766983841820,-151.0,0.00022217,2]
[399990430,1766983841829,-293.357456,0.00022217,2]
[399990432,1766983841839,-151.0,0.00022217,2]
[399990434,1766983841849,-279.034572,0.00022217,2]
[399990436,1766983841857,-436.24496,0.00022217,2]
[399990438,1766983841867,-436.24496,0.00022217,2]
[399990440,1766983841878,-436.24496,0.00022217,2]
[399990442,1766983841887,-436.24496,0.00022217,2]
[399990444,1766983841897,-151.0,0.00022217,2]
[399990465,1766983842100,-745.594472,0.00022217,2]
[399990467,1766983842111,-745.594472,0.00022217,2]
[399990469,1766983842122,-745.594472,0.00022217,2]
[399990471,1766983842133,-745.594472,0.00022217,2]
[399990473,1766983842143,-1419.944977,0.00022217,2]
[399990475,1766983842152,-1419.944977,0.00022217,2]
[399990477,1766983842162,-1419.944977,0.00022217,2]
[399990479,1766983842172,-1419.944977,0.00022217,2]
[399990481,1766983842181,-151.0,0.00022217,2]
[399990483,1766983842191,-151.0,0.00022217,2]
[399990485,1766983842200,-151.0,0.00022217,2]
[399990487,1766983842209,-151.0,0.00022217,2]
[399990489,1766983842219,-283.992649,0.00022217,2]
[399990491,1766983842229,-151.0,0.00022217,2]
[399990493,1766983842238,-194.222755,0.00022217,2]
[399990495,1766983842248,-151.0,0.00022217,2]
[399990497,1766983842258,-151.0,0.00022217,2]
[399990499,1766983842268,-151.0,0.00022217,2]
[399990501,1766983842278,-151.0,0.00022217,2]
[399990503,1766983842288,-151.0,0.00022217,2]
[399990505,1766983842298,-151.0,0.00022217,2]
[399990507,1766983842307,-151.0,0.00022217,2]
[399990509,1766983842317,-170.02173,0.00022217,2]
[399990511,1766983842327,-156.011462,0.00022217,2]
[399990513,1766983842336,-151.0,0.00022217,2]
[399990515,1766983842345,-388.08248,0.00022217,2]
[399990517,1766983842354,-388.08248,0.00022217,2]
[399990519,1766983842364,-151.0,0.00022217,2]
[399990521,1766983842373,-388.08248,0.00022217,2]
[399990523,1766983842383,-1537.041628,0.00022217,2]
[399990525,1766983842392,-1537.041628,0.00022217,2]
[399990527,1766983842401,-529.353773,0.00022217,2]
[399990529,1766983842411,-191.82476049,0.00022274,30]
[399990531,1766983842420,-168.0,0.00022294,2]
[399990533,1766983842430,-191.82476049,0.00022384,30]
[399990535,1766983842440,-168.0,0.00022392,2]
[399990537,1766983842449,-168.0,0.00022396,2]
[399990539,1766983842458,-151.0,0.00022396,2]
[399990541,1766983842468,-151.0,0.00022396,2]
[399990543,1766983842478,-238.888718,0.00022396,2]
[399990545,1766983842488,-168.0,0.00022461,2]
[399990547,1766983842497,-168.0,0.00022461,2]
[399990549,1766983842507,-928.0,0.00022479,2]
[399990551,1766983842516,-156.362862,0.00022482,2]
[399990553,1766983842526,-151.0,0.00022482,2]
[399990555,1766983842535,-151.0,0.00022482,2]
[399990557,1766983842544,-1000.0,0.00022492,10]
[399990559,1766983842554,-492.0,0.00022492,10]
[399990561,1766983842563,-191.82476049,0.00022493,30]
[399990563,1766983842572,-500.0,0.00022498,7]
[399990565,1766983842582,-1686.81,0.000225,14]
[399990567,1766983842591,-298.521041,0.000225,2]
[399990569,1766983842601,-151.0,0.000225,2]
[399990571,1766983842610,-277.084949,0.000225,2]
[399990573,1766983842620,-151.0,0.000225,2]
[399990574,1766983842630,-151.0,0.000225,2]
[399990575,1766983842639,-7698.19252869,0.000225,2]
[399990576,1766983842648,-151.0,0.000225,2]
[399990577,1766983842658,-151.0,0.000225,2]
[399990578,1766983842667,-151.0,0.000225,2]
[399990579,1766983842676,-151.0,0.000225,2]
[399990580,1766983842685,-151.0,0.000225,2]
[399990581,1766983842695,-151.0,0.000225,2]
[399990582,1766983842705,-388.08248,0.000225,2]
[399990583,1766983842714,-388.08248,0.000225,2]
[399990584,1766983842724,-156.562526,0.000225,2]
[399990585,1766983842733,-388.08248,0.000225,2]
[399990586,1766983842742,-1537.041628,0.000225,2]
[399990587,1766983842751,-1537.041628,0.000225,2]
[399990588,1766983842761,-529.353773,0.000225,2]
[399990589,1766983842771,-168.0,0.00022502,2]
[399990590,1766983842780,-191.82476049,0.00022603,30]
[399990592,1766983842790,-151.0,0.00022603,2]
[399990594,1766983842805,-151.0,0.00022603,2]
[399990597,1766983842819,-151.0,0.00022603,2]
[399990599,1766983842829,-167.977295,0.00022603,2]
[399990601,1766983842839,-928.0,0.00022607,2]
[399990603,1766983842849,-168.0,0.00022616,2]
[399990605,1766983842859,-514.84070869,0.00022657,2]
[399990607,1766983842869,-2000.0,0.00022667,7]
[399990609,1766983842879,-168.0,0.00022672,2]
[399990611,1766983842888,-168.0,0.00022706,2]
[399990613,1766983842898,-191.82476049,0.00022712,30]
[399990615,1766983842908,-168.0,0.00022744,2]
[399990617,1766983842919,-168.0,0.0002275,2]
[399990619,1766983842938,-11357.86,0.000228,2]
[399990621,1766983842949,-151.0,0.000228,2]
[399990623,1766983842959,-151.0,0.000228,2]
[399990625,1766983842970,-151.0,0.000228,2]
[399990627,1766983842981,-151.0,0.000228,2]
[399990630,1766983842992,-180.593818,0.000228,2]
[399990632,1766983843002,-151.0,0.000228,2]
[399990634,1766983843013,-151.0,0.000228,2]
[399990636,1766983843023,-151.0,0.000228,2]
[399990638,1766983843033,-151.0,0.000228,2]
[399990640,1766983843044,-151.0,0.000228,2]
[399990642,1766983843053,-151.0,0.000228,2]
[399990644,1766983843064,-151.0,0.000228,2]
[399990647,1766983843074,-201.389752,0.000228,2]
[399990650,1766983843085,-217.289785,0.000228,2]
[399990652,1766983843095,-151.0,0.000228,2]
[399990654,1766983843104,-201.389752,0.000228,2]
[399990656,1766983843115,-217.289785,0.000228,2]
[399990658,1766983843124,-201.389752,0.000228,2]
[399990660,1766983843135,-217.289785,0.000228,2]
[399990662,1766983843145,-217.289785,0.000228,2]
[399990664,1766983843156,-201.389752,0.000228,2]
[399990666,1766983843166,-151.0,0.000228,2]
[399990668,1766983843175,-151.0,0.000228,2]
[399990670,1766983843186,-436.24496,0.000228,2]
[399990672,1766983843196,-436.24496,0.000228,2]
[399990675,1766983843206,-436.24496,0.000228,2]
[399990677,1766983843216,-436.24496,0.000228,2]
[399990679,1766983843226,-151.0,0.000228,2]
[399990680,1766983843237,-745.594472,0.000228,2]
[399990682,1766983843247,-745.594472,0.000228,2]
[399990684,1766983843256,-745.594472,0.000228,2]
[399990686,1766983843266,-745.594472,0.000228,2]
[399990688,1766983843276,-1419.944977,0.000228,2]
[399990690,1766983843286,-1419.944977,0.000228,2]
[399990692,1766983843297,-1419.944977,0.000228,2]
[399990694,1766983843308,-1419.944977,0.000228,2]
[399990697,1766983843319,-151.0,0.000228,2]
[399990698,1766983843328,-151.0,0.000228,2]
[399990700,1766983843338,-151.0,0.000228,2]
[399990702,1766983843348,-151.793899,0.000228,2]
[399990705,1766983843358,-298.654546,0.000228,2]
[399990707,1766983843368,-151.0,0.000228,2]
[399990709,1766983843378,-151.0,0.000228,2]
[399990711,1766983843388,-191.82476049,0.00022822,30]
[399990713,1766983843398,-928.0,0.00022877,2]
[399990715,1766983843407,-191.82476049,0.00022904,30]
[399990717,1766983843416,-5052.89879708,0.00022931,2]
[399990719,1766983843426,-5000.0,0.00022931,2]
[399990721,1766983843435,-174.207669,0.00022932,2]
[399990723,1766983843445,-264.213056,0.00022932,2]
[399990725,1766983843454,-1153.854595,0.00022932,2]
[399990727,1766983843464,-1153.854595,0.00022932,2]
[399990729,1766983843472,-1153.854595,0.00022932,2]
[399990731,1766983843481,-1153.854595,0.00022932,2]
[399990733,1766983843491,-219.083376,0.00022932,2]
[399990735,1766983843501,-151.0,0.00022932,2]
[399990737,1766983843510,-151.0,0.00022932,2]
[399990739,1766983843521,-151.0,0.00022932,2]
[399990741,1766983843530,-350.798441,0.00022932,2]
[399990743,1766983843539,-350.798441,0.00022932,2]
[399990745,1766983843549,-151.0,0.00022932,2]
[399990746,1766983843558,-350.798441,0.00022932,2]
[399990748,1766983843568,-350.798441,0.00022932,2]
[399990750,1766983843577,-151.0,0.00022932,2]
[399990752,1766983843586,-151.0,0.00022932,2]
[399990754,1766983843596,-154.172932,0.00022932,2]
[399990756,1766983843605,-262.81521,0.00022932,2]
[399990758,1766983843615,-262.81521,0.00022932,2]
[399990760,1766983843624,-151.0,0.00022932,2]
[399990762,1766983843634,-262.81521,0.00022932,2]
[399990764,1766983843645,-151.0,0.00022932,2]
[399990766,1766983843655,-151.0,0.00022932,2]
[399990768,1766983843664,-262.81521,0.00022932,2]
[399990769,1766983843674,-151.0,0.00022932,2]
[399990771,1766983843684,-171.701855,0.00022932,2]
[399990773,1766983843693,-284.78968,0.00022932,2]
[399990776,1766983843704,-284.78968,0.00022932,2]
[399990777,1766983843715,-284.78968,0.00022932,2]
[399990780,1766983843725,-284.78968,0.00022932,2]
[399990782,1766983843736,-151.0,0.00022932,2]
[399990783,1766983843748,-804.01902,0.00022932,2]
[399990785,1766983843757,-804.01902,0.00022932,2]
[399990787,1766983843767,-704.489096,0.00022932,2]
[399990789,1766983843776,-625.4441238,0.00022932,2]
[399990792,1766983843796,-79.0449722,0.00022932,2]
[399990794,1766983843805,-228.7915276,0.00022932,2]
[399990797,1766983843821,-1537.041628,0.000212,2]
[399990799,1766983843831,-575.2274924,0.00022932,2]
[399990801,1766983843840,-704.489096,0.00022932,2]
[399990803,1766983843849,-804.01902,0.00022932,2]
[399990805,1766983843859,-704.489096,0.00022932,2]
[399990807,1766983843868,-239.037977,0.00022932,2]
[399990808,1766983843877,-39.53416361,0.00022932,2]
[399990811,1766983843889,-199.50381339,0.00022932,2]
[399990813,1766983843898,-239.037977,0.00022932,2]
[399990815,1766983843907,-239.037977,0.00022932,2]
[399990816,1766983843917,-436.24496,0.00022932,2]
[399990819,1766983843929,-436.24496,0.00022932,2]
[399990820,1766983843938,-436.24496,0.00022932,2]
[399990822,1766983843948,-436.24496,0.00022932,2]
[399990824,1766983843958,-151.0,0.00022932,2]
[399990826,1766983843970,-745.594472,0.00022932,2]
[399990828,1766983843980,-745.594472,0.00022932,2]
[399990830,1766983843990,-745.594472,0.00022932,2]
[399990833,1766983844001,-745.594472,0.00022932,2]
[399990835,1766983844010,-1419.944977,0.00022932,2]
[399990837,1766983844023,-1419.944977,0.00022932,2]
[399990839,1766983844033,-1419.944977,0.00022932,2]
[399990841,1766983844042,-1419.944977,0.00022932,2]
[399990843,1766983844052,-151.0,0.00022932,2]
[399990845,1766983844062,-151.0,0.00022932,2]
[399990847,1766983844072,-151.0,0.00022932,2]
[399990849,1766983844081,-151.0,0.00022932,2]
[399990851,1766983844091,-151.0,0.00022932,2]
[399990853,1766983844100,-151.0,0.00022932,2]
[399990855,1766983844110,-151.0,0.00022932,2]
[399990858,1766983844120,-151.0,0.00022932,2]
[399990861,1766983844129,-151.0,0.00022932,2]
[399990864,1766983844138,-151.0,0.00022932,2]
[399990866,1766983844148,-151.0,0.00022932,2]
[399990867,1766983844157,-388.08248,0.00022932,2]
[399990869,1766983844166,-388.08248,0.00022932,2]
[399990871,1766983844175,-388.08248,0.00022932,2]
[399990873,1766983844184,-1537.041628,0.00022932,2]
[399990875,1766983844193,-1537.041628,0.00022932,2]
[399990877,1766983844203,-191.82476049,0.00023014,30]
[399990879,1766983844212,-166.0,0.00023014,7]
[399990881,1766983844222,-191.82476049,0.00023123,30]
[399990883,1766983844231,-168.0,0.00023152,2]
[399990885,1766983844241,-700.0,0.00023172,2]
[399990887,1766983844250,-374.8748617,0.00023176,2]
[399990889,1766983844260,-382.5700719,0.00023176,2]
[399990891,1766983844270,-376.1809797,0.00023176,2]
[399990893,1766983844279,-376.1809797,0.00023176,2]
[399990895,1766983844288,-600.0,0.00023176,2]
[399990897,1766983844298,-168.0,0.00023196,2]
[399990899,1766983844308,-533.88981491,0.00023205,2]
[399990901,1766983844318,-191.82476049,0.00023233,30]